[Event "Pia Cramling Ladies Open 2018"]
[Site "Stockholm"]
[Date "2018.09.01"]
[Round "3"]
[White "Fransson, Angelina"]
[Black "Agrest, Inna"]
[Result "0-1"]
[ECO "C55"]
[WhiteElo "2004"]
[BlackElo "2283"]
[Annotator "NA"]
[PlyCount "60"]
[EventDate "2018.09.01"]
[EventType "swiss"]
[EventCountry "SWE"]
[SourceTitle "playchess.com"]
[Source "ChessBase"]
[SourceQuality "1"]
[TimeControl "1800+10"]

{[%evp 8,56,-5,-1,0,0,7,-21,-2,-4,32767,32767,32767,32767,32767,32767,32767,32767,32767,32767,32767,32767,32767,32767,-294,-256,-302,-307,-288,-248,-250,-279,-264,-345,-289,-303,-296,-304,32767,-246,-228,-337,-338,32767,-389,-422,-430,-408,-368,-354,-343]} 1. e4 {[%emt 0:00:00]} e5 {[%emt 0:01:28]} 2. Nf3 {[%emt 0:00:00]} Nc6 {[%emt 0:00:01]} 3. d4 exd4 {[%emt 0:00:07]} 4. Bc4 {[%emt 0:00:10]} Nf6 {[%emt 0:00:05]} 5. e5 {[%emt 0:00:02]} d5 {[%emt 0:00:05]} 6. Bb5 {[%emt 0:00:01]} Ne4 {[%emt 0:00:02]} 7. Nxd4 {[%emt 0:00:07] LiveBook: 982 Games} Bc5 {[%emt 0:00:22]} 8. Nxc6 {[%emt 0:05:34] C56: Two Knights: 4 d4 exd4 5 0-0 Nxe4} (8. Be3 O-O 9. Nxc6 bxc6 10. Bxc5 Nxc5 11. Bxc6 Rb8 12. O-O Rxb2 13. Qxd5 Qxd5 14. Bxd5 Rxc2 15. Na3 Re2 16. Rac1 Nd3 17. Rxc7 Be6 18. Bb3 a5 19. Ra7 Bxb3 20. axb3 Rxe5 {1-0 (31) Nakamura,H (2798)-Onischuk,A (2665) Saint Louis 2015}) 8... Bxf2+ {[%emt 0:06:43]} 9. Kf1 {[%emt 0:00:11]} Qh4 {[%emt 0:00:02]} 10. Qf3 {[%emt 0:11:27]} Bg4 $146 {[%emt 0:02:17]} ({Predecessor:} 10... a6 11. Ba4 Bd7 12. e6 fxe6 13. Nd2 Rf8 14. Ne5 Bxa4 15. Qd3 Bd4+ 16. Nef3 Qf2# {0-1 (16) Blanco Estebanez,C-Chans Farina,J (2103) Oviedo 2003}) 11. Qf4 {[%emt 0:00:49]} g5 {[%emt 0:02:56]} 12. Nd4+ {[%emt 0:02:06]} c6 {[%emt 0:00:41]} 13. Nf5 {[%emt 0:01:55]} gxf4 {[%emt 0:00:38]} 14. Nxh4 {[%emt 0:00:05]} cxb5 {[%emt 0:00:17]} 15. Nf3 {[%emt 0:00:21]} Rc8 {[%emt 0:00:36]} 16. c3 {[%emt 0:00:36]} Bb6 {[%emt 0:00:23]} 17. Ke2 {[%emt 0:00:54]} Rg8 {[%emt 0:03:48]} 18. Bxf4 {[%emt 0:00:34]} Bf5 {[%emt 0:00:28]} 19. g3 {[%emt 0:00:40]} Nf2 {[%emt 0:00:18]} 20. Rd1 {[%emt 0:06:50]} Nxd1 {[%emt 0:00:17]} 21. Kxd1 {[%emt 0:00:01]} Bg4 {[%emt 0:01:03]} 22. Nbd2 {[%emt 0:00:01]} d4 {[%emt 0:00:01]} 23. cxd4 {[%emt 0:01:03]} Bxd4 {[%emt 0:00:05]} 24. Rb1 {[%emt 0:00:00]} Bb6 {[%emt 0:00:32]} 25. Ke1 {[%emt 0:00:13]} Ke7 {[%emt 0:00:28]} 26. Ng5 {[%emt 0:00:01]} Bf5 {[%emt 0:00:29]} 27. Nge4 {[%emt 0:00:21]} Rc6 {[%emt 0:01:31]} 28. Rd1 {[%emt 0:00:14]} Ba5 $19 {[%emt 0:00:17]} 29. Bg5+ {[%emt 0:00:09]} Ke6 {[%emt 0:00:22]} 30. Ke2 {[%emt 0:00:23]} Bxd2 {[%emt 0:00:12]} 0-1

[Event "Pia Cramling Ladies Open 2018"]
[Site "Stockholm"]
[Date "2018.09.01"]
[Round "3"]
[White "Mariano-Wågman, Christine Rose"]
[Black "Bengtsson, Siv"]
[Result "1-0"]
[ECO "B23"]
[WhiteElo "1906"]
[BlackElo "2111"]
[Annotator "NA"]
[PlyCount "53"]
[EventDate "2018.09.01"]
[EventType "swiss"]
[EventCountry "SWE"]
[SourceTitle "playchess.com"]
[Source "ChessBase"]
[SourceQuality "1"]
[TimeControl "1800+10"]

1. e4 {[%emt 0:00:00]} c5 {[%emt 0:00:18]} 2. Ne2 {[%emt 0:00:06]} Nc6 {[%emt 0:00:08]} 3. Nbc3 {[%emt 0:00:25]} Nf6 {[%emt 0:00:22]} 4. g3 {[%emt 0:00:05]} e6 {[%emt 0:00:23]} 5. Bg2 {[%emt 0:00:04]} d5 {[%emt 0:00:06]} 6. exd5 {[%emt 0:00:10]} exd5 {[%emt 0:00:05]} 7. Nf4 {[%emt 0:00:06]} d4 {[%emt 0:05:46]} 8. Ncd5 {[%emt 0:00:04]} Nxd5 {[%emt 0:00:54]} 9. Nxd5 {[%emt 0:00:01]} Be6 {[%emt 0:01:05] B23: Sizilianisch (Geschlossenes System)} (9... Bd6 10. O-O O-O 11. d3 Be6 12. Qh5 Qd7 13. Re1 Bg4 14. Qh4 Ne5 15. h3 Be6 16. Qh5 Rad8 17. Nf4 Bf5 18. b3 Rfe8 19. Bd2 {1-0 (84) Reinderman,D (2593)-Yu,Y (2677) Wijk aan Zee 2014}) 10. Nf4 {[%emt 0:00:21]} Bd7 $146 {[%emt 0:00:34]} ({Vorgänger:} 10... Bf5 11. O-O Be7 12. d3 O-O 13. Re1 Qd7 14. a3 Rad8 15. Bd2 Rfe8 16. h3 h6 17. g4 {1-0 (39) Egorov,E (2387)-Taalaibekov,T (2139) Cholpon Ata 2016}) 11. O-O {[%emt 0:00:50]} Be7 {[%emt 0:00:13]} 12. d3 {[%emt 0:00:30]} O-O {[%emt 0:00:05]} 13. Re1 {[%emt 0:00:14]} Rc8 {[%emt 0:01:16]} 14. Bd2 {[%emt 0:00:24]} b5 {[%emt 0:01:40]} 15. Qh5 {[%emt 0:00:46]} g6 {[%emt 0:01:52]} 16. Qd5 {[%emt 0:00:13]} Nb8 {[%emt 0:00:26]} 17. Re2 {[%emt 0:10:30]} Bf6 {[%emt 0:01:15]} 18. Rae1 {[%emt 0:01:15]} Bc6 {[%emt 0:04:40]} 19. Qb3 {[%emt 0:01:19]} c4 {[%emt 0:02:13]} 20. dxc4 {[%emt 0:00:06]} bxc4 {[%emt 0:00:01]} 21. Qa3 {[%emt 0:00:10]} Bxg2 {[%emt 0:00:42]} 22. Nxg2 {[%emt 0:01:33]} Qb6 {[%emt 0:01:35]} 23. Bb4 {[%emt 0:01:14]} Rfd8 $2 {[%emt 0:00:09]} (23... d3 $1 $11 {und Schwarz steht sicher.} 24. cxd3 cxd3) 24. Ba5 {[%emt 0:00:09]} Qc6 {[%emt 0:00:59]} 25. Bxd8 {[%emt 0:00:11]} Bxd8 {[%emt 0:00:14]} (25... Rxd8 $18 26. Nf4 (26. Qxa7 Na6 $16) 26... Kg7) 26. Re8+ {[%emt 0:00:05]} Kg7 {[%emt 0:00:02]} 27. Qf8+ {[%emt 0:00:05]} 1-0

[Event "Pia Cramling Ladies Open 2018"]
[Site "Stockholm"]
[Date "2018.09.01"]
[Round "3"]
[White "Berg, Maria"]
[Black "Stromberg, Victoria"]
[Result "1-0"]
[ECO "C00"]
[WhiteElo "1722"]
[BlackElo "1224"]
[Annotator "NA"]
[PlyCount "63"]
[EventDate "2018.09.01"]
[EventType "swiss"]
[EventCountry "SWE"]
[SourceTitle "playchess.com"]
[Source "ChessBase"]
[SourceQuality "1"]
[TimeControl "1800+10"]

1. e4 {[%emt 0:00:46]} e6 {[%emt 0:00:00]} 2. d4 {[%emt 0:00:27]} g6 {[%emt 0:00:12]} 3. Nf3 {[%emt 0:01:05]} Bg7 {[%emt 0:00:10]} 4. Be2 {[%emt 0:00:39]} d6 {[%emt 0:00:08]} 5. O-O {[%emt 0:00:28]} Ne7 {[%emt 0:00:03]} 6. Nc3 {[%emt 0:00:48]} Nd7 {[%emt 0:00:36]} 7. Bg5 {[%emt 0:01:30]} a6 {[%emt 0:01:38]} 8. Qd2 {[%emt 0:00:46]} h6 {[%emt 0:00:57]} 9. Be3 {[%emt 0:01:04]} Nf6 {[%emt 0:00:26]} 10. e5 {[%emt 0:01:22]} Ng4 {[%emt 0:00:28]} 11. exd6 {[%emt 0:01:26]} cxd6 {[%emt 0:00:25]} 12. h3 {[%emt 0:05:20]} Nxe3 {[%emt 0:00:09]} 13. fxe3 {[%emt 0:03:45]} Bd7 {[%emt 0:01:04]} 14. d5 {[%emt 0:00:15]} exd5 {[%emt 0:01:51]} 15. Nxd5 {[%emt 0:00:37]} Nxd5 {[%emt 0:00:42]} 16. Qxd5 {[%emt 0:00:12]} Bc6 {[%emt 0:00:08]} 17. Qb3 {[%emt 0:01:16]} O-O {[%emt 0:00:43]} 18. Bd3 {[%emt 0:01:17]} Qd7 {[%emt 0:02:59]} 19. Bxg6 {[%emt 0:00:57]} d5 {[%emt 0:01:46]} 20. Bh5 {[%emt 0:02:58]} Rae8 {[%emt 0:00:32]} 21. Nd4 {[%emt 0:00:37]} Kh8 {[%emt 0:02:25]} 22. Rf3 {[%emt 0:01:20]} Re5 {[%emt 0:02:11]} 23. Bg4 {[%emt 0:01:15]} Qe7 {[%emt 0:00:22]} 24. Raf1 {[%emt 0:00:34]} Be8 {[%emt 0:09:15]} 25. Nf5 {[%emt 0:00:23]} Qg5 {[%emt 0:01:17]} 26. Nd6 {[%emt 0:01:35]} h5 {[%emt 0:02:46]} 27. Bc8 {[%emt 0:00:02]} f6 {[%emt 0:00:48]} 28. Qxb7 {[%emt 0:00:13]} Bb5 {[%emt 0:00:24]} 29. R1f2 {[%emt 0:01:33]} Rxe3 {[%emt 0:00:04]} 30. Nf7+ {[%emt 0:00:09]} Rxf7 {[%emt 0:00:05]} 31. Qxf7 {[%emt 0:00:03]} Re1+ {[%emt 0:00:09]} 32. Kh2 1-0

[Event "Pia Cramling Ladies Open 2018"]
[Site "Stockholm"]
[Date "2018.09.01"]
[Round "3"]
[White "Olsson, Linn"]
[Black "Akerlund, Lucia"]
[Result "1-0"]
[ECO "A56"]
[WhiteElo "1703"]
[BlackElo "1339"]
[Annotator "NA"]
[PlyCount "79"]
[EventDate "2018.09.01"]
[EventType "swiss"]
[EventCountry "SWE"]
[SourceTitle "playchess.com"]
[Source "ChessBase"]
[SourceQuality "1"]
[TimeControl "1800+10"]

1. d4 {[%emt 0:00:00]} Nf6 {[%emt 0:00:09]} 2. c4 {[%emt 0:00:00]} c5 {[%emt 0:00:11]} 3. e3 {[%emt 0:00:53]} Nc6 {[%emt 0:00:36]} 4. Nc3 {[%emt 0:00:12]} e5 {[%emt 0:00:19]} 5. d5 {[%emt 0:00:16]} Ne7 {[%emt 0:00:39]} 6. e4 {[%emt 0:00:22]} d6 {[%emt 0:00:15]} 7. Nf3 {[%emt 0:00:35]} Ng6 {[%emt 0:00:22]} 8. Bg5 {[%emt 0:01:36]} Be7 {[%emt 0:00:19]} 9. a3 {[%emt 0:00:29]} O-O {[%emt 0:00:19]} 10. Be2 {[%emt 0:00:21]} Ne8 {[%emt 0:00:50]} 11. Be3 {[%emt 0:01:32]} a6 {[%emt 0:00:34]} 12. O-O {[%emt 0:00:48]} f5 {[%emt 0:00:49]} 13. exf5 {[%emt 0:02:46]} Rxf5 {[%emt 0:01:31]} 14. Bd3 {[%emt 0:00:11]} Rf6 {[%emt 0:01:22]} 15. Bg5 {[%emt 0:00:43]} Rf8 {[%emt 0:00:38]} 16. Bxg6 {[%emt 0:05:27]} Bxg5 {[%emt 0:00:22]} 17. Bxe8 {[%emt 0:01:19]} Rxe8 {[%emt 0:00:10]} 18. Ne4 {[%emt 0:00:12]} Bg4 {[%emt 0:00:39]} 19. Nexg5 {[%emt 0:00:19]} e4 {[%emt 0:01:16]} 20. Nxe4 {[%emt 0:00:38]} Rxe4 {[%emt 0:00:10]} 21. Qd3 {[%emt 0:00:43]} Bf5 {[%emt 0:01:50]} 22. Qc3 {[%emt 0:00:10]} Qf8 {[%emt 0:01:21]} 23. Rfe1 {[%emt 0:01:54]} Rae8 {[%emt 0:00:10]} 24. Rxe4 {[%emt 0:02:00]} Bxe4 {[%emt 0:00:15]} 25. Ng5 {[%emt 0:00:46]} Bg6 {[%emt 0:04:36]} 26. Ne6 {[%emt 0:00:13]} Qf7 {[%emt 0:00:31]} 27. b4 {[%emt 0:00:46]} b6 {[%emt 0:00:19]} 28. bxc5 {[%emt 0:00:28]} bxc5 {[%emt 0:00:09]} 29. Qa5 {[%emt 0:01:08]} Bf5 {[%emt 0:02:02]} 30. Re1 {[%emt 0:02:21]} h5 {[%emt 0:01:22]} 31. Qxa6 {[%emt 0:00:44]} h4 {[%emt 0:00:58]} 32. h3 {[%emt 0:00:27]} Qg6 {[%emt 0:01:46]} 33. Kh2 {[%emt 0:01:10]} Bxe6 {[%emt 0:01:04]} 34. dxe6 {[%emt 0:00:13]} Rxe6 {[%emt 0:00:07]} 35. Qc8+ {[%emt 0:00:05]} Kf7 {[%emt 0:00:32]} 36. Qd7+ {[%emt 0:00:07]} Kg8 {[%emt 0:01:13]} 37. Qxe6+ {[%emt 0:00:03]} Qxe6 {[%emt 0:00:07]} 38. Rxe6 {[%emt 0:00:01]} Kf7 {[%emt 0:00:02]} 39. Rxd6 {[%emt 0:00:01]} Ke7 40. Rd1 1-0

[Event "Pia Cramling Ladies Open 2018"]
[Site "Stockholm"]
[Date "2018.09.01"]
[Round "3"]
[White "Hellmer, Helena"]
[Black "Puuska, Heini"]
[Result "0-1"]
[ECO "A05"]
[WhiteElo "1436"]
[BlackElo "1961"]
[Annotator "NA"]
[PlyCount "60"]
[EventDate "2018.09.01"]
[EventType "swiss"]
[EventCountry "SWE"]
[SourceTitle "playchess.com"]
[Source "ChessBase"]
[SourceQuality "1"]
[TimeControl "1800+10"]

1. Nf3 {[%emt 0:00:55]} Nf6 {[%emt 0:00:07]} 2. g3 {[%emt 0:00:04]} d5 {[%emt 0:00:24]} 3. d3 {[%emt 0:00:02]} h6 {[%emt 0:00:24]} 4. Bg2 {[%emt 0:00:02]} Bf5 {[%emt 0:00:12]} 5. Nbd2 {[%emt 0:00:04] A07: Réti Opening: New York and Capablanca Systems} (5. c4 dxc4 6. Ne5 c6 7. Nxc4 Nbd7 8. O-O e5 9. b4 Qc7 10. a3 Rd8 11. Bb2 Be7 12. Nbd2 O-O {1-0 (39) Shabalov,A (2533)-Mandiza,F (2368) Chicago 2016}) 5... Nbd7 {[%emt 0:00:46]} 6. O-O {[%emt 0:00:03]} e5 {[%emt 0:00:39]} 7. c4 {[%emt 0:00:35]} (7. e4 $5 dxe4 8. Nxe4 $11) 7... c6 {[%emt 0:01:13]} 8. Nh4 $146 {[%emt 0:01:36]} ({Predecessor:} 8. cxd5 cxd5 9. Qa4 Qb8 10. e4 Be6 11. exd5 Bxd5 12. Re1 b5 13. Qd1 Bd6 14. Nxe5 Bxe5 15. Bxd5 Nxd5 {½-½ (29) Jablonicky,M (2331)-Lintner,I (2089) Tatralandia 2015}) 8... Be6 {[%emt 0:01:37]} 9. e4 {[%emt 0:01:07]} d4 {[%emt 0:00:47]} 10. Nb3 {[%emt 0:01:25]} c5 {[%emt 0:01:05]} 11. Nf5 {[%emt 0:00:54]} g6 {[%emt 0:02:26]} 12. Nh4 {[%emt 0:00:10]} Nh5 {[%emt 0:01:51]} 13. f4 {[%emt 0:00:40] [#]} exf4 $1 {[%emt 0:00:41]} 14. Bxf4 {[%emt 0:00:01]} (14. Nf5 {war nötig.} fxg3 15. Nxg3) 14... Nxf4 {[%emt 0:00:28]} 15. Nf5 {[%emt 0:04:28]} Nxg2 {[%emt 0:01:50]} 16. Qe2 {[%emt 0:01:22]} Ne3 {[%emt 0:00:54]} 17. Nxe3 {[%emt 0:00:10]} dxe3 {[%emt 0:00:15]} 18. Qxe3 {[%emt 0:00:11]} Bg7 {[%emt 0:00:59]} 19. Qf2 {[%emt 0:00:58]} O-O {[%emt 0:01:49]} 20. Qg2 {[%emt 0:01:52]} Qc7 {[%emt 0:04:18]} 21. Kh1 {[%emt 0:02:22]} Ne5 {[%emt 0:01:05]} 22. d4 {[%emt 0:00:44]} cxd4 {[%emt 0:00:45]} 23. Nxd4 {[%emt 0:00:03]} Bxc4 {[%emt 0:01:40]} 24. Rfc1 {[%emt 0:00:05]} Qb6 {[%emt 0:01:23]} 25. Rd1 {[%emt 0:02:01]} Rad8 {[%emt 0:00:36]} 26. b3 {[%emt 0:01:25]} Rxd4 {[%emt 0:00:52]} 27. bxc4 {[%emt 0:00:02]} Rxd1+ {[%emt 0:00:40]} 28. Rxd1 {[%emt 0:00:02]} Rd8 {[%emt 0:00:08]} 29. Rxd8+ {[%emt 0:01:22]} Qxd8 {[%emt 0:00:02]} 30. Qe2 {[%emt 0:00:22]} Qd3 $19 {[%emt 0:00:22]} 0-1

[Event "Pia Cramling Ladies Open 2018"]
[Site "Stockholm"]
[Date "2018.09.01"]
[Round "3"]
[White "Ostensson, Julia"]
[Black "Johansson, Eva"]
[Result "0-1"]
[ECO "B00"]
[WhiteElo "1375"]
[BlackElo "1881"]
[Annotator "NA"]
[PlyCount "102"]
[EventDate "2018.09.01"]
[EventType "swiss"]
[EventCountry "SWE"]
[SourceTitle "playchess.com"]
[Source "ChessBase"]
[SourceQuality "1"]
[TimeControl "1800+10"]

1. e4 {[%emt 0:00:00]} d6 {[%emt 0:00:00]} 2. d4 {[%emt 0:00:04]} Nf6 {[%emt 0:00:00]} 3. Bd3 {[%emt 0:00:34]} g6 {[%emt 0:00:12]} 4. Bg5 {[%emt 0:00:34]} Bg7 {[%emt 0:00:16]} 5. Nf3 {[%emt 0:00:57]} O-O {[%emt 0:00:30] B07: Pirc Defence: Miscellaneous Systems} 6. h3 {[%emt 0:00:38]} c5 {[%emt 0:00:49]} 7. c3 {[%emt 0:01:10]} Nc6 {[%emt 0:01:12]} (7... h6 8. Be3 Qc7 9. Nbd2 b6 10. O-O Ba6 11. c4 cxd4 12. Nxd4 Nbd7 13. Rc1 Nc5 {0-1 (45) Costachi,M (2361)-Deac,B (2402) Calimanesti 2015}) 8. d5 {[%emt 0:01:38]} Nb8 {[%emt 0:00:02]} 9. Qd2 {[%emt 0:00:56]} c4 $146 {[%emt 0:01:32]} ({Predecessor:} 9... Re8 10. c4 Na6 11. a3 Nc7 12. Nc3 e6 13. O-O-O exd5 14. exd5 {0-1 (37) Flitney,A-Ginat,M Melbourne 1982}) 10. Bxf6 {[%emt 0:01:02]} Bxf6 {[%emt 0:00:02]} 11. Bxc4 {[%emt 0:00:03]} Nd7 {[%emt 0:00:28]} 12. Qe2 {[%emt 0:01:19]} Qb6 {[%emt 0:01:02]} 13. O-O {[%emt 0:02:31]} Bg7 {[%emt 0:00:55]} 14. Bb3 {[%emt 0:00:55]} Nc5 {[%emt 0:00:17]} 15. Nbd2 {[%emt 0:00:16]} a5 {[%emt 0:01:02]} 16. Rab1 {[%emt 0:01:34]} Bd7 {[%emt 0:01:00]} 17. Qe3 {[%emt 0:01:08]} Qc7 {[%emt 0:00:40]} 18. Bc2 {[%emt 0:01:02]} a4 {[%emt 0:00:48]} 19. Rbc1 {[%emt 0:01:45]} Bb5 {[%emt 0:02:45]} 20. Rfe1 {[%emt 0:00:52]} Nd7 {[%emt 0:01:14]} 21. c4 {[%emt 0:00:11]} Ba6 {[%emt 0:01:01]} 22. Bxa4 {[%emt 0:00:30]} Bxb2 {[%emt 0:00:03]} 23. Rc2 {[%emt 0:00:29]} Bg7 {[%emt 0:00:09]} 24. Rec1 {[%emt 0:01:32]} Rfc8 {[%emt 0:01:16]} 25. Bxd7 {[%emt 0:00:25]} Qxd7 {[%emt 0:00:01]} 26. Qf4 {[%emt 0:00:51]} h6 {[%emt 0:01:29]} 27. e5 {[%emt 0:00:47]} g5 {[%emt 0:02:00]} 28. Qxf7+ {[%emt 0:02:57]} Kxf7 $17 {[%emt 0:00:18]} 29. e6+ {[%emt 0:00:02]} Ke8 {[%emt 0:00:00]} 30. exd7+ {[%emt 0:00:02]} Kxd7 {[%emt 0:00:02]} 31. Re1 {[%emt 0:00:28]} b5 32. Re4 {[%emt 0:01:29]} Bb7 {[%emt 0:01:12]} 33. Ne1 {[%emt 0:00:56]} Bf6 {[%emt 0:03:29]} 34. g3 {[%emt 0:00:45]} Ra7 {[%emt 0:00:53]} 35. Kg2 {[%emt 0:00:14]} Rca8 {[%emt 0:00:16]} 36. cxb5 {[%emt 0:01:45]} Bxd5 {[%emt 0:00:11]} 37. b6 {[%emt 0:00:51]} Rb7 {[%emt 0:00:07]} 38. f3 {[%emt 0:00:41]} Bxe4 {[%emt 0:00:22]} 39. Nxe4 {[%emt 0:00:06]} Rxb6 {[%emt 0:00:05]} 40. Nxf6+ {[%emt 0:00:58]} exf6 {[%emt 0:00:02]} 41. Nd3 {[%emt 0:00:06]} Rba6 {[%emt 0:00:16]} 42. Nb4 {[%emt 0:00:05]} Ra4 {[%emt 0:00:22]} 43. Nd5 {[%emt 0:00:28]} Rxa2 {[%emt 0:00:55]} 44. Nb6+ {[%emt 0:00:53]} Kd8 {[%emt 0:00:03]} 45. Nxa8 {[%emt 0:00:18]} Rxc2+ {[%emt 0:00:03]} 46. Kg1 {[%emt 0:00:01]} Rc6 {[%emt 0:00:05]} 47. Kf2 {[%emt 0:00:03]} Kc8 {[%emt 0:00:03]} 48. Ke3 {[%emt 0:00:01]} Kb7 {[%emt 0:00:01]} 49. f4 {[%emt 0:00:13]} Kxa8 {[%emt 0:00:02]} 50. fxg5 {[%emt 0:00:04]} fxg5 {[%emt 0:00:02]} 51. Kf3 {[%emt 0:00:04]} Rc4 {[%emt 0:00:03]} 0-1

[Event "Pia Cramling Ladies Open 2018"]
[Site "Stockholm"]
[Date "2018.09.01"]
[Round "4"]
[White "Agrest, Inna"]
[Black "Mariano-Wågman, Christine Rose"]
[Result "1-0"]
[ECO "B01"]
[WhiteElo "2283"]
[BlackElo "1906"]
[Annotator "NA"]
[PlyCount "113"]
[EventDate "2018.09.01"]
[EventType "swiss"]
[EventCountry "SWE"]
[SourceTitle "playchess.com"]
[Source "ChessBase"]
[SourceQuality "1"]
[TimeControl "1800+10"]

1. e4 {[%emt 0:00:00]} d5 {[%emt 0:00:01]} 2. exd5 {[%emt 0:00:01]} Qxd5 {[%emt 0:00:04]} 3. Nc3 {[%emt 0:00:01]} Qa5 {[%emt 0:00:05]} 4. Bc4 {[%emt 0:00:21]} Nf6 {[%emt 0:00:12]} 5. Nf3 {[%emt 0:00:13]} Bg4 {[%emt 0:00:07]} 6. h3 {[%emt 0:00:30] B01: Skandinavische Verteidigung} Bf5 {[%emt 0:00:04]} (6... Bxf3 7. Qxf3 c6 8. O-O e6 9. d4 Be7 10. Ne4 Nbd7 11. Nxf6+ Nxf6 12. c3 O-O 13. Bf4 Qf5 14. Bd3 Qd5 15. Qe2 Rfd8 16. Be5 Nd7 17. Bg3 Nf6 18. Be5 Nd7 19. Bg3 {½-½ (19) Shanava,K (2556)-Azaladze,S (2443) Poti 2010}) 7. d3 {[%emt 0:00:30]} e6 {[%emt 0:01:20]} 8. Bd2 {[%emt 0:00:30]} c6 {[%emt 0:00:38]} 9. Qe2 {[%emt 0:00:16]} Qc7 {[%emt 0:00:32]} 10. Bb3 $146 {[%emt 0:00:25]} ({Vorgänger:} 10. Nd4 Bg6 11. Bg5 Be7 12. Qe3 h6 13. Bf4 Qb6 {0-1 (54) Michielsen,M-Looijer,C Rijswijk 2010}) 10... Nbd7 {[%emt 0:00:20]} 11. d4 {[%emt 0:05:13]} Be7 {[%emt 0:00:40]} 12. Ne5 {[%emt 0:00:49]} Nxe5 {[%emt 0:01:42]} 13. dxe5 {[%emt 0:00:02]} Nd7 {[%emt 0:00:10]} 14. Bf4 {[%emt 0:00:46]} Bb4 {[%emt 0:00:58]} 15. O-O {[%emt 0:01:40]} Bxc3 {[%emt 0:03:51]} 16. bxc3 {[%emt 0:00:02]} O-O {[%emt 0:01:05]} 17. Rad1 {[%emt 0:00:17]} Nc5 {[%emt 0:00:23]} 18. Bc1 {[%emt 0:00:55]} Qa5 {[%emt 0:00:43]} 19. c4 {[%emt 0:01:22]} Ne4 {[%emt 0:00:24]} 20. Rd4 {[%emt 0:00:36]} Qxe5 {[%emt 0:04:23]} 21. c3 {[%emt 0:01:16]} Bg6 {[%emt 0:04:48]} 22. Re1 {[%emt 0:04:16]} f5 {[%emt 0:00:40]} 23. Rd7 {[%emt 0:01:35]} Rad8 {[%emt 0:07:19]} 24. Rxd8 {[%emt 0:01:28]} Rxd8 {[%emt 0:00:01]} 25. f3 {[%emt 0:00:17]} Qxc3 {[%emt 0:00:56]} 26. fxe4 {[%emt 0:00:16]} fxe4 $1 $11 {[%emt 0:00:04]} 27. Bb2 {[%emt 0:01:26]} Qb4 {[%emt 0:00:18]} 28. Bc1 {[%emt 0:01:02]} c5 $2 {[%emt 0:00:21]} 29. Rd1 {[%emt 0:01:05]} Rf8 {[%emt 0:00:18]} 30. Bc2 {[%emt 0:00:33]} b5 {[%emt 0:00:50]} 31. cxb5 {[%emt 0:00:21]} e5 {[%emt 0:00:52]} 32. a3 {[%emt 0:00:54]} Qc3 {[%emt 0:00:30]} 33. Bxe4 {[%emt 0:00:34]} Be8 {[%emt 0:00:11]} 34. a4 {[%emt 0:00:47]} c4 {[%emt 0:00:11]} 35. Bb2 {[%emt 0:01:10]} Qg3 {[%emt 0:00:05]} 36. Bd5+ {[%emt 0:00:06]} Kh8 {[%emt 0:00:11]} 37. Bxe5 {[%emt 0:00:18]} Qg5 {[%emt 0:00:05]} 38. Bf3 $18 {[%emt 0:02:09]} Bf7 {[%emt 0:00:01]} 39. Bc3 {[%emt 0:00:16]} Re8 {[%emt 0:00:08]} 40. Qd2 {[%emt 0:00:14]} Qg6 {[%emt 0:00:14]} 41. Qd4 {[%emt 0:00:18]} h6 {[%emt 0:00:23]} 42. Qxa7 {[%emt 0:00:14]} Be6 {[%emt 0:00:11]} 43. Qd4 {[%emt 0:00:53]} Rf8 {[%emt 0:00:03]} 44. Be4 {[%emt 0:00:13]} Qg3 {[%emt 0:00:06]} 45. Qe5 {[%emt 0:00:27]} Qe3+ {[%emt 0:00:16]} 46. Kh1 {[%emt 0:00:09]} Rf6 {[%emt 0:00:24]} 47. Qb8+ {[%emt 0:00:17]} Bg8 {[%emt 0:00:20]} 48. Bxf6 {[%emt 0:00:15]} Qxe4 49. Bd4 {[%emt 0:00:29]} Qe2 {[%emt 0:00:05]} 50. Rg1 {[%emt 0:00:07]} Kh7 {[%emt 0:00:00]} 51. Qg3 {[%emt 0:00:05]} Qe7 {[%emt 0:00:08]} 52. Re1 {[%emt 0:00:05]} Qd7 {[%emt 0:00:03]} 53. Bc3 {[%emt 0:00:03]} Bd5 {[%emt 0:00:03]} 54. b6 {[%emt 0:00:09]} g5 {[%emt 0:00:02]} 55. a5 {[%emt 0:00:05]} Qb7 {[%emt 0:00:01]} 56. Qf2 {[%emt 0:00:10]} Be6 {[%emt 0:00:07]} 57. Rxe6 {[%emt 0:00:02]} 1-0

[Event "Pia Cramling Ladies Open 2018"]
[Site "Stockholm"]
[Date "2018.09.01"]
[Round "4"]
[White "Bengtsson, Siv"]
[Black "Olsson, Linn"]
[Result "1-0"]
[ECO "C62"]
[WhiteElo "2111"]
[BlackElo "1703"]
[Annotator "NA"]
[PlyCount "59"]
[EventDate "2018.09.01"]
[EventType "swiss"]
[EventCountry "SWE"]
[SourceTitle "playchess.com"]
[Source "ChessBase"]
[SourceQuality "1"]
[TimeControl "1800+10"]

1. e4 {[%emt 0:00:00]} e5 {[%emt 0:00:20]} 2. Nf3 {[%emt 0:00:06]} Nc6 {[%emt 0:00:11]} 3. Bb5 {[%emt 0:00:04]} d6 {[%emt 0:00:16]} 4. d4 {[%emt 0:00:51]} exd4 {[%emt 0:01:40]} 5. Nxd4 {[%emt 0:02:12]} Bd7 {[%emt 0:00:18]} 6. O-O {[%emt 0:01:02]} Nf6 {[%emt 0:00:26]} 7. Nc3 {[%emt 0:01:07]} g6 {[%emt 0:02:06]} 8. Nxc6 {[%emt 0:02:26]} bxc6 {[%emt 0:00:36]} 9. Bc4 {[%emt 0:00:27]} Bg7 {[%emt 0:00:37]} 10. Bg5 {[%emt 0:01:24]} O-O {[%emt 0:01:04]} 11. Qd2 {[%emt 0:01:56]} Qc8 {[%emt 0:03:10]} 12. Rad1 Be6 {[%emt 0:01:46]} 13. Bb3 $11 {[%emt 0:05:16]} Re8 {[%emt 0:02:55]} 14. f3 {[%emt 0:03:31]} Bxb3 {[%emt 0:01:10]} 15. axb3 {[%emt 0:00:11]} Re5 {[%emt 0:00:42]} 16. Rfe1 {[%emt 0:05:35]} Qe8 {[%emt 0:05:41]} 17. Bf4 {[%emt 0:00:18]} Rh5 {[%emt 0:01:38]} 18. Ne2 {[%emt 0:00:56]} Qe6 {[%emt 0:01:32]} 19. Nd4 {[%emt 0:00:40]} Qd7 {[%emt 0:00:25]} 20. Qe2 {[%emt 0:01:50]} c5 {[%emt 0:00:19]} 21. Nb5 {[%emt 0:00:12]} a6 {[%emt 0:00:12]} 22. Nc3 {[%emt 0:00:04]} Qe6 {[%emt 0:01:26]} 23. g4 {[%emt 0:00:37]} Bh6 {[%emt 0:01:24]} 24. gxh5 {[%emt 0:00:15]} Bxf4 {[%emt 0:00:04]} 25. hxg6 {[%emt 0:00:14]} hxg6 {[%emt 0:00:16]} 26. Nd5 {[%emt 0:00:03]} Nh5 {[%emt 0:00:39]} 27. Nxc7 {[%emt 0:00:26]} Bxh2+ {[%emt 0:00:08]} 28. Qxh2 {[%emt 0:00:16]} Qc8 {[%emt 0:01:00]} 29. Nxa8 {[%emt 0:00:02]} Qxa8 {[%emt 0:00:01]} 30. Qxd6 {[%emt 0:00:06]} 1-0